fUSD/lending_fUSD_20260408
["ID","MTS","AMOUNT","RATE_DAILY","PERIOD"]
[420088359,1775663446265,-231.476561,0.00013699,2]
[420088360,1775663446275,-151.0,0.00013699,2]
[420088361,1775663446285,-231.694162,0.00013699,2]
[420088362,1775663446295,-231.476561,0.00013699,2]
[420088363,1775663446305,-641.078677,0.00013699,2]
[420088364,1775663446314,-151.0,0.00013699,2]
[420088365,1775663446325,-231.694162,0.00013699,2]
[420088366,1775663446334,-231.476561,0.00013699,2]
[420088367,1775663446344,-151.0,0.00013699,2]
[420088368,1775663446354,-641.078677,0.00013699,2]
[420088369,1775663446364,-260.17,0.00013699,2]
[420088370,1775663446374,-231.694162,0.00013699,2]
[420088371,1775663446384,-1243.774526,0.00013699,2]
[420088372,1775663446394,-641.078677,0.00013699,2]
[420088373,1775663446404,-151.0,0.00013699,2]
[420088374,1775663446414,-1243.774526,0.00013699,2]
[420088375,1775663446423,-641.078677,0.00013699,2]
[420088376,1775663446433,-151.0,0.00013699,2]
[420088377,1775663446443,-1243.774526,0.00013699,2]
[420088378,1775663446453,-1572.247701,0.00013699,2]
[420088379,1775663446463,-151.0,0.00013699,2]
[420088380,1775663446472,-151.0,0.00013699,2]
[420088381,1775663446482,-2527.009308,0.00013699,2]
[420088382,1775663446492,-151.0,0.00013699,2]
[420088383,1775663446501,-1243.774526,0.00013699,2]
[420088384,1775663446511,-390.268321,0.00013699,2]
[420088385,1775663446520,-1572.247701,0.00013699,2]
[420088386,1775663446530,-857.190655,0.00013699,2]
[420088387,1775663446539,-216.81,0.00013699,2]
[420088388,1775663446549,-151.0,0.00013699,2]
[420088389,1775663446559,-2527.009308,0.00013699,2]
[420088390,1775663446569,-151.0,0.00013699,2]
[420088391,1775663446580,-390.268321,0.00013699,2]
[420088392,1775663446590,-1572.247701,0.00013699,2]
[420088393,1775663446601,-857.190655,0.00013699,2]
[420088394,1775663446612,-2527.009308,0.00013699,2]
[420088395,1775663446622,-151.0,0.00013699,2]
[420088396,1775663446632,-151.0,0.00013699,2]
[420088397,1775663446642,-151.0,0.00013699,2]
[420088398,1775663446651,-151.765139,0.00013699,2]
[420088399,1775663446661,-1572.247701,0.00013699,2]
[420088400,1775663446669,-390.268321,0.00013699,2]
[420088401,1775663446679,-857.190655,0.00013699,2]
[420088402,1775663446689,-151.0,0.00013699,2]
[420088403,1775663446699,-151.0,0.00013699,2]
[420088404,1775663446709,-390.268321,0.00013699,2]
[420088405,1775663446719,-857.190655,0.00013699,2]
[420088406,1775663446729,-151.0,0.00013699,2]
[420088407,1775663446739,-1320.429681,0.00013699,2]
[420088408,1775663446749,-151.0,0.00013699,2]
[420088409,1775663446759,-180.67,0.00013699,2]
[420088410,1775663446768,-151.0,0.00013699,2]
[420088411,1775663446778,-1320.429681,0.00013699,2]
[420088412,1775663446788,-1360.940005,0.00013699,2]
[420088413,1775663446797,-151.0,0.00013699,2]
[420088414,1775663446807,-2527.009308,0.00013699,2]
[420088415,1775663446817,-151.0,0.00013699,2]
[420088416,1775663446827,-162.60419222,0.00013699,2]
[420088417,1775663446838,-501.46029237,0.00013699,2]
[420088418,1775663446848,-500.0,0.00013699,2]
[420088419,1775663446857,-500.0,0.00013699,2]
[420088420,1775663446867,-192.86830962,0.00013699,2]
[420088421,1775663446877,-500.0,0.00013699,2]
[420088422,1775663446886,-163.13180477,0.00013699,2]
[420088423,1775663446896,-500.0,0.00013699,2]
[420088424,1775663446907,-500.0,0.00013699,2]
[420088425,1775663446917,-500.0,0.00013699,2]
[420088426,1775663446927,-1000.0,0.00013699,7]
[420088427,1775663446936,-500.0,0.00013699,2]
[420088428,1775663446946,-500.0,0.00013699,2]
[420088429,1775663446956,-500.0,0.00013699,2]
[420088430,1775663446965,-500.0,0.00013699,2]
[420088431,1775663446975,-500.0,0.00013699,2]
[420088432,1775663446985,-500.0,0.00013699,2]
[420088433,1775663446996,-500.0,0.00013699,2]
[420088434,1775663447006,-500.0,0.00013699,2]
[420088435,1775663447016,-500.73011575,0.00013699,2]
[420088436,1775663447025,-500.0,0.00013699,2]
[420088437,1775663447035,-500.32940014,0.00013699,2]
[420088438,1775663447045,-500.0,0.00013699,2]
[420088439,1775663447055,-500.0,0.00013699,2]
[420088440,1775663447064,-500.0,0.00013699,2]
[420088441,1775663447074,-500.0,0.00013699,2]
[420088442,1775663447084,-166.87044109,0.00013699,2]
[420088443,1775663447094,-500.0,0.00013699,2]
[420088444,1775663447105,-288.28066678,0.00013699,2]
[420088445,1775663447115,-500.0,0.00013699,2]
[420088446,1775663447125,-164.42313659,0.00013699,2]
[420088447,1775663447135,-163.86569709,0.00013699,2]
[420088448,1775663447145,-500.0,0.00013699,2]
[420088449,1775663447155,-500.0,0.00013699,2]
[420088450,1775663447165,-500.0,0.00013699,2]
[420088451,1775663447174,-501.02489372,0.00013699,2]
[420088452,1775663447185,-474.64837932,0.00013699,2]
[420088453,1775663447195,-500.0,0.00013699,2]
[420088454,1775663447205,-500.0,0.00013699,2]
[420088455,1775663447215,-500.0,0.00013699,2]
[420088456,1775663447225,-837.44850205,0.00013699,2]
[420088457,1775663447235,-207.52369719,0.00013699,2]
[420088458,1775663447246,-6340.14619288,0.00013699,2]
[420088459,1775663447257,-158.71,0.00013699,2]
[420088460,1775663447266,-152.1118183,0.00013699,2]
[420088461,1775663447277,-786.02,0.00013699,2]
[420088462,1775663447287,-227.1345,0.000137,2]
[420088463,1775663447296,-4393.37,0.000137,2]
[420088464,1775663447307,-4393.37,0.000137,2]
[420088465,1775663447316,-4393.37,0.000137,2]
[420088466,1775663447326,-4393.37,0.000137,2]
[420088467,1775663447335,-4393.37,0.000137,2]
[420088468,1775663447345,-500.0,0.00013734,2]
[420088469,1775663447355,-151.0,0.00013734,2]
[420088470,1775663447365,-155.32006583,0.00013744,2]
[420088471,1775663447375,-200.0,0.00013787,2]
[420088472,1775663447385,-187.78006525,0.00013787,2]
[420088473,1775663447394,-771.01748645,0.00013787,2]
[420088474,1775663447404,-181.08010149,0.00013787,2]
[420088475,1775663447414,-591.41950389,0.00013787,2]
[420088476,1775663447423,-500.0,0.00013789,2]
[420088477,1775663447433,-151.0,0.00013789,2]
[420088478,1775663447443,-166.66,0.00013836,2]
[420088479,1775663447452,-1513.3582935,0.00013836,2]
[420088480,1775663447462,-200.0,0.00013836,2]
[420088481,1775663447472,-500.0,0.00013844,2]
[420088482,1775663447483,-151.0,0.00013844,2]
[420088483,1775663447494,-1000.0,0.00013891,2]
[420088484,1775663447504,-1000.0,0.00013891,2]
[420088485,1775663447514,-500.0,0.00013899,2]
[420088486,1775663447524,-151.0,0.00013899,2]
[420088487,1775663447534,-500.0,0.00013954,2]
[420088488,1775663447543,-151.0,0.00013954,2]
[420088489,1775663447553,-150.0,0.00013973,2]
[420088490,1775663447562,-150.0,0.00013973,2]
[420088491,1775663447572,-150.0,0.00013973,2]
[420088492,1775663447582,-150.0,0.00013973,2]
[420088493,1775663447592,-166.66,0.00013973,2]
[420088494,1775663447601,-786.02,0.00013973,2]
[420088495,1775663447611,-376.36,0.0001399,2]
[420088496,1775663447621,-4733.74989347,0.00014006,2]
[420088497,1775663447631,-500.0,0.00014009,2]
[420088498,1775663447640,-151.0,0.00014009,2]
[420088499,1775663447650,-1444.0,0.00014037,5]
[420088500,1775663447659,-2084.0,0.00014037,5]
[420088501,1775663447670,-6453.0,0.00014045,2]
[420088502,1775663447679,-1501.0,0.00014049,2]
[420088503,1775663447689,-253.29,0.00014095,2]
[420088504,1775663447699,-166.66,0.0001411,2]
[420088505,1775663447708,-386.399198,0.0001414,2]
[420088506,1775663447718,-362.562741,0.0001414,7]
[420088507,1775663447728,-581.152426,0.0001414,2]
[420088508,1775663447738,-778.895478,0.0001414,7]
[420088509,1775663447747,-501.0,0.00014145,2]
[420088510,1775663447757,-34439.24604663,0.0001416,2]
[420088511,1775663447766,-3059.7221736,0.0001416,2]
[420088512,1775663447776,-3986.53206071,0.00014186,2]
[420088513,1775663447785,-427.4,0.00014223,2]
[420088514,1775663447795,-166.66,0.00014247,2]
[420088515,1775663447804,-150.0,0.00014247,2]
[420088516,1775663447814,-150.0,0.00014247,2]
[420088517,1775663447823,-1000.0,0.00014247,2]
[420088518,1775663447833,-242.46089406,0.00014247,2]
[420088519,1775663447844,-792.48284775,0.00014247,2]
[420088520,1775663447853,-1000.0,0.00014247,2]
[420088521,1775663447863,-1082.33512146,0.00014247,2]
[420088522,1775663447873,-1000.0,0.00014247,2]
[420088523,1775663447883,-1000.0,0.00014247,2]
[420088524,1775663447892,-1000.0,0.00014247,2]
[420088525,1775663447902,-1000.0,0.00014247,2]
[420088526,1775663447911,-501.03865935,0.00014247,2]
[420088527,1775663447921,-1000.0,0.00014247,2]
[420088528,1775663447931,-1000.0,0.00014247,2]
[420088529,1775663447940,-1000.0,0.00014247,2]
[420088530,1775663447950,-503.55298516,0.00014247,2]
[420088531,1775663447959,-1000.0,0.00014247,2]
[420088532,1775663447969,-1000.0,0.00014247,2]
[420088533,1775663447978,-1000.0,0.00014247,2]
[420088534,1775663447988,-499.69188729,0.00014247,2]
[420088535,1775663447997,-1000.0,0.00014247,2]
[420088536,1775663448007,-1000.0,0.00014247,2]
[420088537,1775663448016,-1003.11256555,0.00014247,2]
[420088538,1775663448026,-504.71632379,0.00014247,2]
[420088539,1775663448035,-1000.0,0.00014247,2]
[420088540,1775663448045,-1000.0,0.00014247,2]
[420088541,1775663448054,-786.02,0.00014247,2]
[420088542,1775663448065,-565.60270226,0.00014294,2]
[420088543,1775663448074,-200.0,0.00014335,2]
[420088544,1775663448083,-194.72792766,0.00014335,2]
[420088545,1775663448093,-799.54513345,0.00014335,2]
[420088546,1775663448102,-187.78006525,0.00014335,2]
[420088547,1775663448113,-166.66,0.00014384,2]
[420088548,1775663448123,-985.91,0.00014384,2]
[420088549,1775663448132,-200.0,0.00014384,2]
[420088550,1775663448142,-500.0,0.00014389,2]
[420088551,1775663448152,-159.9392,0.00014389,2]
[420088552,1775663448161,-427.4,0.00014432,2]
[420088553,1775663448171,-501.68603262,0.00014439,2]
[420088554,1775663448181,-1392.57733286,0.00014439,2]
[420088555,1775663448191,-786.02,0.00014521,2]
[420088556,1775663448200,-895.03,0.00014609,2]
[420088557,1775663448210,-9835.21781373,0.00014612,2]
[420088558,1775663448220,-427.4,0.0001464,2]
[420088559,1775663448230,-985.91,0.00014658,2]
[420088560,1775663448241,-1500.0,0.00014795,2]
[420088561,1775663448251,-250.0,0.00014795,2]
[420088562,1775663448261,-1079.80120854,0.00014795,2]
[420088563,1775663448271,-1500.0,0.00014795,2]
[420088564,1775663448281,-1002.38567456,0.00014795,2]
[420088565,1775663448292,-1500.0,0.00014795,2]
[420088566,1775663448302,-445.29859118,0.00014795,2]
[420088567,1775663448312,-644.24089955,0.00014795,2]
[420088568,1775663448323,-1500.0,0.00014795,2]
[420088569,1775663448334,-1500.0,0.00014795,2]
[420088570,1775663448345,-1500.0,0.00014795,2]
[420088571,1775663448355,-502.36079739,0.00014795,2]
[420088572,1775663448365,-892.34268442,0.00014795,2]
[420088573,1775663448525,-1500.0,0.00014795,2]
[420088574,1775663448543,-1430.82314799,0.00014795,2]
[420088575,1775663448554,-1500.0,0.00014795,2]
[420088576,1775663448564,-786.02,0.00014795,2]
[420088577,1775663448573,-956.0,0.00014795,2]
[420088578,1775663448583,-427.4,0.00014849,2]
[420088579,1775663448593,-34439.24604663,0.00014852,2]
[420088580,1775663448603,-9596.7,0.00014853,2]
[420088581,1775663448613,-364.53,0.00014853,2]
[420088582,1775663448623,-200.0,0.00014883,2]
[420088583,1775663448634,-339.94317143,0.00014883,2]
[420088584,1775663448644,-829.12830338,0.00014883,2]
[420088585,1775663448654,-194.72792766,0.00014883,2]
[420088586,1775663448664,-5939.86409868,0.00014925,2]
[420088587,1775663448675,-5000.0,0.00014925,2]
[420088588,1775663448685,-5000.0,0.00014925,2]
[420088589,1775663448695,-5000.0,0.00014925,2]
[420088590,1775663448705,-5000.0,0.00014925,2]
[420088591,1775663448715,-883.72,0.00014932,2]
[420088592,1775663448724,-200.0,0.00014932,2]
[420088593,1775663448734,-1000.0,0.00014937,2]
[420088594,1775663448745,-208.37237059,0.00014952,2]
[420088595,1775663448755,-500.0,0.00014952,2]
[420088596,1775663448764,-500.0,0.00014952,2]
[420088597,1775663448774,-500.0,0.00014952,2]
[420088598,1775663448784,-500.0,0.00014952,2]
[420088599,1775663448795,-500.0,0.00014952,2]
[420088600,1775663448807,-500.0,0.00014952,2]
[420088601,1775663448817,-500.0,0.00014952,2]
[420088602,1775663448827,-595.10163207,0.00014952,2]
[420088603,1775663448836,-150.0,0.00014952,2]
[420088604,1775663448846,-150.0,0.00014952,2]
[420088605,1775663448856,-150.0,0.00014952,2]
[420088606,1775663448866,-182.15202066,0.00014952,2]
[420088607,1775663448876,-150.0,0.00014952,2]
[420088608,1775663448886,-150.0,0.00014952,2]
[420088609,1775663448896,-256.56798922,0.00014952,2]
[420088610,1775663448906,-500.0,0.00014952,2]
[420088611,1775663448916,-500.0,0.00014952,2]
[420088612,1775663448926,-500.0,0.00014952,2]
[420088613,1775663448936,-500.0,0.00014952,2]
[420088614,1775663448946,-500.0,0.00014952,2]
[420088615,1775663448956,-500.0,0.00014952,2]
[420088616,1775663448966,-500.0,0.00014952,2]
[420088617,1775663448975,-500.0,0.00014952,2]
[420088618,1775663448985,-500.0,0.00014952,2]
[420088619,1775663448996,-500.0,0.00014952,2]
[420088620,1775663449006,-500.0,0.00014952,2]
[420088621,1775663449016,-500.0,0.00014952,2]
[420088622,1775663449025,-341.376807,0.00014952,2]
[420088623,1775663449035,-399.40597196,0.00014952,2]
[420088624,1775663449046,-500.0,0.00014952,2]
[420088625,1775663449056,-500.0,0.00014952,2]
[420088626,1775663449066,-500.0,0.00014952,2]
[420088627,1775663449076,-500.0,0.00014952,2]
[420088628,1775663449086,-500.0,0.00014952,2]
[420088629,1775663449096,-500.0,0.00014952,2]
[420088630,1775663449106,-500.0,0.00014952,2]
[420088631,1775663449116,-165.86332065,0.00014952,2]
[420088632,1775663449126,-500.0,0.00014952,2]
[420088633,1775663449135,-339.81765262,0.00014952,2]
[420088634,1775663449145,-500.0,0.00014952,2]
[420088635,1775663449155,-500.0,0.00014952,2]
[420088636,1775663449165,-287.13980161,0.00014952,2]
[420088637,1775663449175,-500.0,0.00014952,2]
[420088638,1775663449186,-500.0,0.00014952,2]
[420088639,1775663449196,-500.0,0.00014952,2]
[420088640,1775663449206,-388.39476597,0.00014952,2]
[420088641,1775663449217,-160.5097946,0.00014952,2]
[420088642,1775663449227,-150.0,0.00014952,2]
[420088643,1775663449237,-150.0,0.00014952,2]
[420088644,1775663449247,-150.0,0.00014952,2]
[420088645,1775663449258,-150.0,0.00014952,2]
[420088646,1775663449268,-150.0,0.00014952,2]
[420088647,1775663449278,-150.0,0.00014952,2]
[420088648,1775663449288,-150.0,0.00014952,2]
[420088649,1775663449298,-150.0,0.00014952,2]
[420088650,1775663449309,-150.0,0.00014952,2]
[420088651,1775663449319,-176.0009961,0.00014952,2]
[420088652,1775663449328,-150.0,0.00014952,2]
[420088653,1775663449339,-150.88467267,0.00014952,2]
[420088654,1775663449348,-185.23665201,0.00014952,2]
[420088655,1775663449359,-500.0,0.00014952,2]
[420088656,1775663449369,-500.0,0.00014952,2]
[420088657,1775663449379,-500.0,0.00014952,2]
[420088658,1775663449390,-500.0,0.00014952,2]
[420088659,1775663449401,-500.0,0.00014952,2]
[420088660,1775663449411,-500.0,0.00014952,2]
[420088661,1775663449421,-381.23774932,0.00014952,2]
[420088662,1775663449431,-1778.0,0.00014952,2]
[420088663,1775663449441,-1778.0,0.00014952,2]
[420088664,1775663449451,-1778.0,0.00014952,2]
[420088665,1775663449461,-1778.0,0.00014952,2]
[420088666,1775663449472,-1778.0,0.00014952,2]
[420088667,1775663449481,-500.0,0.00014952,2]
[420088668,1775663449492,-1778.0,0.00014952,2]
[420088669,1775663449501,-500.0,0.00014952,2]
[420088670,1775663449511,-150.0,0.00014952,2]
[420088671,1775663449521,-1778.0,0.00014952,2]
[420088672,1775663449532,-500.0,0.00014952,2]
[420088673,1775663449542,-150.0,0.00014952,2]
[420088674,1775663449552,-500.0,0.00014952,2]
[420088675,1775663449562,-150.0,0.00014952,2]
[420088676,1775663449572,-528.23575097,0.00014952,2]
[420088677,1775663449583,-150.0,0.00014952,2]
[420088678,1775663449593,-150.0,0.00014952,2]
[420088679,1775663449603,-188.34372111,0.00014952,2]
[420088680,1775663449613,-1778.0,0.00014952,2]
[420088681,1775663449624,-1778.0,0.00014952,2]
[420088682,1775663449634,-1778.0,0.00014952,2]
[420088683,1775663449645,-1778.0,0.00014952,2]
[420088684,1775663449655,-1778.0,0.00014952,2]
[420088685,1775663449665,-1778.0,0.00014952,2]
[420088686,1775663449676,-1778.0,0.00014952,2]
[420088687,1775663449686,-1778.0,0.00014952,2]
[420088688,1775663449696,-1778.0,0.00014952,2]
[420088689,1775663449706,-1778.0,0.00014952,2]
[420088690,1775663449716,-1778.0,0.00014952,2]
[420088691,1775663449726,-1778.0,0.00014952,2]
[420088692,1775663449737,-1778.0,0.00014952,2]
[420088693,1775663449747,-1778.0,0.00014952,2]
[420088694,1775663449758,-1778.0,0.00014952,2]
[420088695,1775663449768,-1778.0,0.00014952,2]
[420088696,1775663449778,-1797.43616336,0.00014952,2]
[420088697,1775663449788,-500.0,0.00014952,2]
[420088698,1775663449799,-500.0,0.00014952,2]
[420088699,1775663449809,-500.0,0.00014952,2]
[420088700,1775663449819,-274.1065221,0.00014952,2]
[420088701,1775663449830,-150.0,0.00014952,2]
[420088702,1775663449841,-150.0,0.00014952,2]
[420088703,1775663449851,-150.0,0.00014952,2]
[420088704,1775663449861,-150.0,0.00014952,2]
[420088705,1775663449872,-150.0,0.00014952,2]
[420088706,1775663449882,-150.0,0.00014952,2]
[420088707,1775663449893,-150.0,0.00014952,2]
[420088708,1775663449903,-637.0,0.00014952,2]
[420088709,1775663449913,-174.61425545,0.00014952,2]
[420088710,1775663449924,-637.0,0.00014952,2]
[420088711,1775663449934,-150.0,0.00014952,2]
[420088712,1775663449945,-637.0,0.00014952,2]
[420088713,1775663449955,-150.0,0.00014952,2]
[420088714,1775663449966,-637.0,0.00014952,2]
[420088715,1775663449976,-286.3666211,0.00014952,2]
[420088716,1775663449987,-637.0,0.00014952,2]
[420088717,1775663449998,-637.0,0.00014952,2]
[420088718,1775663450008,-637.0,0.00014952,2]
[420088719,1775663450019,-637.0,0.00014952,2]
[420088720,1775663450029,-637.0,0.00014952,2]
[420088721,1775663450039,-637.0,0.00014952,2]
[420088722,1775663450049,-150.0,0.00014952,2]
[420088723,1775663450059,-637.0,0.00014952,2]
[420088724,1775663450070,-150.0,0.00014952,2]
[420088725,1775663450080,-637.0,0.00014952,2]
[420088726,1775663450091,-200.0,0.00014952,2]
[420088727,1775663450101,-637.0,0.00014952,2]
[420088728,1775663450112,-637.0,0.00014952,2]
[420088729,1775663450122,-637.0,0.00014952,2]
[420088730,1775663450132,-637.0,0.00014952,2]
[420088731,1775663450141,-637.0,0.00014952,2]
[420088732,1775663450151,-637.0,0.00014952,2]
[420088733,1775663450161,-637.0,0.00014952,2]
[420088734,1775663450171,-201.16710883,0.00014952,2]
[420088735,1775663450182,-637.0,0.00014952,2]
[420088736,1775663450192,-500.0,0.00014952,2]
[420088737,1775663450202,-637.0,0.00014952,2]
[420088738,1775663450212,-500.0,0.00014952,2]
[420088739,1775663450223,-500.0,0.00014952,2]
[420088740,1775663450233,-637.0,0.00014952,2]
[420088741,1775663450243,-644.57907854,0.00014952,2]
[420088742,1775663450253,-637.0,0.00014952,2]
[420088743,1775663450264,-500.0,0.00014952,2]
[420088744,1775663450274,-500.0,0.00014952,2]
[420088745,1775663450284,-500.0,0.00014952,2]
[420088746,1775663450294,-500.0,0.00014952,2]
[420088747,1775663450305,-500.0,0.00014952,2]
[420088748,1775663450315,-500.0,0.00014952,2]
[420088749,1775663450326,-500.0,0.00014952,2]
[420088750,1775663450336,-500.0,0.00014952,2]
[420088751,1775663450346,-500.0,0.00014952,2]
[420088752,1775663450356,-500.0,0.00014952,2]
[420088753,1775663450366,-500.0,0.00014952,2]
[420088754,1775663450377,-658.0,0.00014952,2]
[420088755,1775663450386,-509.72471578,0.00014952,2]
[420088756,1775663450396,-500.0,0.00014952,2]
[420088757,1775663450405,-500.0,0.00014952,2]
[420088758,1775663450414,-500.0,0.00014952,2]
[420088759,1775663450423,-500.0,0.00014952,2]
[420088760,1775663450433,-500.0,0.00014952,2]
[420088761,1775663450443,-500.0,0.00014952,2]
[420088762,1775663450453,-500.0,0.00014952,2]
[420088763,1775663450463,-500.0,0.00014952,2]
[420088764,1775663450472,-500.0,0.00014952,2]
[420088765,1775663450482,-500.0,0.00014952,2]
[420088766,1775663450492,-500.0,0.00014952,2]
[420088767,1775663450502,-500.0,0.00014952,2]
[420088768,1775663450513,-500.0,0.00014952,2]
[420088769,1775663450522,-432.47425874,0.00014952,2]
[420088770,1775663450533,-300.0,0.00015,2]
[420088771,1775663450543,-10000.0,0.00015,15]
[420088772,1775663450553,-10000.0,0.00015,15]
[420088773,1775663450563,-10000.0,0.00015,15]
[420088774,1775663450572,-427.4,0.00015057,2]
[420088775,1775663450583,-3010.644,0.00015068,2]
[420088776,1775663450593,-181.113,0.00015068,2]
[420088777,1775663450603,-524.53,0.00015068,2]
[420088778,1775663450613,-420.19,0.00015068,2]
[420088779,1775663450623,-150.0,0.00015091,2]
[420088780,1775663450633,-251.357984,0.00015093,2]
[420088781,1775663450643,-260.8238,0.000151,2]
[420088782,1775663450653,-176.363535,0.00015186,2]
[420088783,1775663450663,-501.0,0.00015191,3]
[420088784,1775663450673,-4305.0,0.00015209,2]
[420088785,1775663450683,-1000.0,0.00015242,2]
[420088786,1775663450693,-4305.0,0.00015254,2]
[420088787,1775663450704,-1000.0,0.00015263,2]
[420088788,1775663450714,-427.4,0.00015266,2]
[420088789,1775663450724,-570.79309048,0.00015266,2]
[420088790,1775663450734,-4305.0,0.00015287,2]
[420088791,1775663450744,-1000.0,0.00015301,2]
[420088792,1775663450755,-2000.0,0.00015342,2]
[420088793,1775663451142,-254.25810122,0.00015342,2]
[420088794,1775663451168,-2000.0,0.00015342,2]
[420088795,1775663451179,-2000.0,0.00015342,2]
[420088796,1775663451191,-2000.0,0.00015342,2]
[420088797,1775663451201,-2000.0,0.00015342,2]
[420088798,1775663451211,-2000.0,0.00015342,2]
[420088799,1775663451222,-197.87652131,0.00015342,2]
[420088800,1775663451231,-350.0,0.00015349,2]
[420088801,1775663451241,-4305.0,0.00015357,2]
[420088802,1775663451251,-1000.0,0.00015371,2]
[420088803,1775663451261,-4305.0,0.00015399,2]
[420088804,1775663451272,-250.91,0.00015413,2]
[420088805,1775663451282,-4305.0,0.00015417,2]
[420088806,1775663451292,-350.0,0.00015428,2]
[420088807,1775663451302,-200.0,0.00015431,2]
[420088808,1775663451312,-859.80605061,0.00015431,2]
[420088809,1775663451323,-201.93286099,0.00015431,2]
[420088810,1775663451334,-7819.0,0.00015449,2]
[420088811,1775663451345,-150.0,0.00015454,2]
[420088812,1775663451355,-250.91,0.00015458,2]
[420088813,1775663451365,-4305.0,0.00015464,2]
[420088814,1775663451376,-168.86,0.00015465,2]
[420088815,1775663451386,-1904.19,0.00015471,2]
[420088816,1775663451397,-427.4,0.00015474,2]
[420088817,1775663451407,-1000.0,0.00015476,2]
[420088818,1775663451418,-152.45672918,0.00015478,2]
[420088819,1775663451428,-200.0,0.0001548,2]
[420088820,1775663451438,-1002.00296386,0.00015485,2]
[420088821,1775663451449,-1000.0,0.00015493,2]
[420088822,1775663451460,-350.0,0.00015498,2]
[420088823,1775663451471,-250.91,0.00015502,2]
[420088824,1775663451481,-4000.0,0.00015507,2]
[420088825,1775663451492,-1000.0,0.00015508,2]
[420088826,1775663451503,-162.886949,0.00015508,2]
[420088827,1775663451515,-151.0,0.00015508,2]
[420088828,1775663451525,-1236.32836,0.00015508,2]
[420088829,1775663451535,-151.0,0.00015508,2]
[420088830,1775663451545,-151.0,0.00015508,2]
[420088831,1775663451556,-151.0,0.00015508,2]
[420088832,1775663451566,-155.995064,0.00015508,2]
[420088833,1775663451577,-1236.32836,0.00015508,2]
[420088834,1775663451587,-151.0,0.00015508,2]
[420088835,1775663451597,-1236.32836,0.00015508,2]
[420088836,1775663451607,-151.0,0.00015508,2]
[420088837,1775663451618,-151.0,0.00015508,2]
[420088838,1775663451631,-151.0,0.00015508,2]
[420088839,1775663451642,-1236.32836,0.00015508,2]
[420088840,1775663451652,-151.0,0.00015508,2]
[420088841,1775663451663,-1590.940947,0.00015508,2]
[420088842,1775663451673,-151.0,0.00015508,2]
[420088843,1775663451683,-151.0,0.00015508,2]
[420088844,1775663451693,-173.387355,0.00015508,2]
[420088845,1775663451703,-151.0,0.00015508,2]
[420088846,1775663451713,-1590.940947,0.00015508,2]
[420088847,1775663451723,-173.387355,0.00015508,2]
[420088848,1775663451732,-1590.940947,0.00015508,2]
[420088849,1775663451742,-173.387355,0.00015508,2]
[420088850,1775663451752,-1590.940947,0.00015508,2]
[420088851,1775663451763,-151.0,0.00015508,2]
[420088852,1775663451773,-173.387355,0.00015508,2]
[420088853,1775663451783,-151.0,0.00015508,2]
[420088854,1775663451794,-151.0,0.00015508,2]
[420088855,1775663451805,-163.758899,0.00015508,2]
[420088856,1775663451815,-151.0,0.00015508,2]
[420088857,1775663451825,-151.0,0.00015508,2]
[420088858,1775663451835,-151.0,0.00015508,2]